fUSD/lending_fUSD_20251030
["ID","MTS","AMOUNT","RATE_DAILY","PERIOD"]
[392693148,1761821439934,-21747.56850284,0.0001498,2]
[392693151,1761821439945,-8418.93833776,0.0001498,2]
[392693220,1761821442616,-1281.5,0.0001498,2]
[392693221,1761821442667,-408.24168199,0.0001498,2]
[392693222,1761821442679,-16315.31210357,0.0001498,2]
[392693226,1761821445625,-3813.40475046,0.0001498,2]
[392693227,1761821445638,-3464.01327658,0.0001498,2]
[392693228,1761821445661,-133741.47966897,0.0001498,2]
[392693229,1761821445870,-1322.58,0.0001498,2]
[392693236,1761821526352,200.0,0.00014075,2]
[392693237,1761821553728,706.19,0.00014075,2]
[392693238,1761821585892,-500.0,0.00025002,120]
[392693239,1761821585924,-500.0,0.00026435,120]
[392693240,1761821585957,-500.0,0.00027868,120]
[392693241,1761821585991,-500.0,0.00029302,120]
[392693242,1761821586021,-625.54448338,0.0002998,120]
[392693243,1761821586055,-150.0,0.00030137,120]
[392693244,1761821586087,-500.0,0.00030735,120]
[392693245,1761821586115,-600.0,0.0003088,120]
[392693246,1761821586144,-844.7834278,0.00031,120]
[392693247,1761821601284,500.0,0.00028004,120]
[392693248,1761821601683,500.0,0.00030104,120]
[392693249,1761821614508,1000.0,0.00014075,2]
[392693250,1761821633876,150.0,0.00031507,120]
[392693251,1761821637697,150.0,0.00031507,120]
[392693252,1761821640599,150.0,0.00031507,120]
[392693253,1761821644478,150.0,0.00031507,120]
[392693254,1761821675697,158.14084671,0.00031507,120]
[392693255,1761821725909,15075.5409679,0.00014,2]
[392693256,1761821907809,15000.0,0.00014,2]
[392693258,1761822171489,1000.0,0.00014,2]
[392693259,1761822190267,153.18129613,0.00031506,120]
[392693260,1761822200585,500.0,0.00028129,120]
[392693261,1761822201051,229.184264,0.00030229,120]
[392693262,1761822372296,381.93153539,0.00014,2]
[392693263,1761822385554,1000.0,0.00016,3]
[392693264,1761822403128,1000.0,0.00016,3]
[392693265,1761822406095,1000.0,0.00016,3]
[392693266,1761822418677,1000.0,0.00016,3]
[392693267,1761822419611,1000.0,0.00016,3]
[392693268,1761822440615,1000.0,0.00016,3]
[392693269,1761822442113,1000.0,0.00016,3]
[392693270,1761822444934,1000.0,0.00016,3]
[392693272,1761822452088,1894.83312722,0.00016,3]
[392693276,1761822631713,-250.0,0.00014464,2]
[392693277,1761822631724,-2500.0,0.00014464,2]
[392693278,1761822631734,-727.53995792,0.000145,2]
[392693279,1761822631747,-272.46004208,0.000145,2]
[392693280,1761822631756,-300.0,0.00014537,2]
[392693281,1761822631765,-145.53156278,0.00014618,2]
[392693282,1761822631777,-977.3327285,0.00014618,2]
[392693283,1761822631819,-500.6880279,0.00014618,2]
[392693284,1761822631829,-168.0,0.00014794,2]
[392693285,1761822631838,-300.73509,0.0001483,2]
[392693286,1761822631848,-1473.99318082,0.0001483,2]
[392693287,1761822631860,-198.97227241,0.0001483,2]
[392693288,1761822631869,-300.73509,0.0001488,2]
[392693289,1761822631881,-300.73509,0.0001494,2]
[392693290,1761822631891,-1200.0,0.00014964,2]
[392693291,1761822631901,-300.0,0.00014964,2]
[392693292,1761822631910,-1781.03498559,0.00014965,2]
[392693293,1761822631922,-334.33830891,0.00014965,2]
[392693294,1761822631935,-2152.93203089,0.00014965,2]
[392693295,1761822631944,-215.563,0.00014979,2]
[392693296,1761822631954,-150.0,0.00014979,2]
[392693297,1761822631963,-500.0,0.00014979,2]
[392693298,1761822631973,-430.54999796,0.00014979,2]
[392693299,1761822631982,-15371.77732718,0.0001498,2]
[392693300,1761822631994,-1161.97613691,0.0001498,2]
[392693301,1761822632005,-11216.95062547,0.0001498,2]
[392693302,1761822632017,-2430.63083125,0.0001498,2]
[392693303,1761822632032,-1868.97794623,0.0001498,2]
[392693328,1761822637698,-409.4016062,0.00014391,2]
[392693330,1761822638291,-221.9770388,0.00014391,2]
[392693331,1761822638301,-114.66385236,0.000149,2]
[392693332,1761822638324,-300.76795282,0.000149,2]
[392693333,1761822638336,-8574.73641458,0.0001498,2]
[392693334,1761822639908,-5994.95987997,0.0001498,2]
[392693335,1761822640170,-4078.88621118,0.0001498,2]
[392693336,1761822640223,-7791.39999997,0.0001498,2]
[392693337,1761822640234,-288.63020376,0.0001498,2]
[392693364,1761822643164,-360389.05596947,0.0001498,2]
[392693365,1761822643175,-253.03841902,0.0001498,2]
[392693366,1761822643186,-300.73509,0.0001498,2]
[392693367,1761822643196,-8889.0,0.00014986,2]
[392693368,1761822643205,-79666.42511477,0.0001499,2]
[392693369,1761822643215,-151.0,0.00014991,2]
[392693370,1761822643224,-151.0,0.00014991,2]
[392693371,1761822643234,-151.0,0.00014991,2]
[392693372,1761822643244,-500.0,0.00014991,2]
[392693373,1761822643256,-235.20305303,0.00014991,2]
[392693374,1761822643266,-449.20419525,0.00014991,2]
[392693375,1761822643275,-553.64373807,0.00014991,2]
[392693376,1761822643285,-500.0,0.00014991,2]
[392693377,1761822643295,-151.0,0.00014991,2]
[392693378,1761822643304,-151.0,0.00014991,2]
[392693379,1761822643315,-151.0,0.00014991,2]
[392693380,1761822643326,-151.0,0.00014991,2]
[392693381,1761822643335,-151.0,0.00014991,2]
[392693382,1761822643345,-151.0,0.00014991,2]
[392693383,1761822643355,-151.0,0.00014991,2]
[392693384,1761822643365,-500.0,0.00014991,2]
[392693385,1761822643375,-151.0,0.00014991,2]
[392693387,1761822643384,-151.0,0.00014991,2]
[392693388,1761822643394,-500.0,0.00014991,2]
[392693389,1761822643404,-151.0,0.00014991,2]
[392693390,1761822643414,-151.0,0.00014991,2]
[392693391,1761822643424,-151.0,0.00014991,2]
[392693392,1761822643435,-500.0,0.00014991,2]
[392693393,1761822643445,-151.0,0.00014991,2]
[392693394,1761822643455,-151.0,0.00014991,2]
[392693395,1761822643465,-500.0,0.00014991,2]
[392693396,1761822643475,-151.0,0.00014991,2]
[392693397,1761822643485,-250.0,0.00014991,2]
[392693398,1761822643495,-151.0,0.00014991,2]
[392693399,1761822643504,-151.0,0.00014991,2]
[392693400,1761822643514,-250.0,0.00014991,2]
[392693401,1761822643525,-151.0,0.00014991,2]
[392693402,1761822643535,-347.27104021,0.00014991,2]
[392693403,1761822643545,-151.0,0.00014991,2]
[392693404,1761822643554,-203.4015947,0.00014991,2]
[392693405,1761822643564,-151.0,0.00014991,2]
[392693406,1761822643582,-151.0,0.00014991,2]
[392693407,1761822643593,-151.0,0.00014991,2]
[392693408,1761822643603,-151.0,0.00014991,2]
[392693409,1761822643613,-151.0,0.00014991,2]
[392693410,1761822643624,-165.33450404,0.00014991,2]
[392693411,1761822643634,-151.0,0.00014991,2]
[392693412,1761822643644,-151.0,0.00014991,2]
[392693413,1761822643654,-151.0,0.00014991,2]
[392693414,1761822643663,-151.0,0.00014991,2]
[392693415,1761822643675,-500.0,0.00014991,2]
[392693416,1761822643685,-500.0,0.00014991,2]
[392693417,1761822643695,-500.0,0.00014991,2]
[392693418,1761822643705,-500.0,0.00014991,2]
[392693419,1761822643715,-500.0,0.00014991,2]
[392693420,1761822643725,-500.0,0.00014991,2]
[392693421,1761822643734,-202.738887,0.00014991,2]
[392693422,1761822643744,-500.0,0.00014991,2]
[392693423,1761822643754,-500.0,0.00014991,2]
[392693424,1761822643764,-500.0,0.00014991,2]
[392693425,1761822643774,-579.47586303,0.00014991,2]
[392693426,1761822643783,-322.6107,0.00014991,2]
[392693427,1761822643801,-577.75,0.00014991,2]
[392693428,1761822643813,-500.0,0.00014999,2]
[392693429,1761822643824,-508.14024927,0.00014999,2]
[392693430,1761822643834,-500.0,0.00014999,2]
[392693431,1761822643844,-400.0,0.00014999,2]
[392693432,1761822643854,-150.0,0.00014999,2]
[392693433,1761822643863,-1029.8585,0.00014999,2]
[392693434,1761822643873,-1605.0,0.00015,2]
[392693435,1761822643882,-318072.34504629,0.00015,2]
[392693439,1761822646088,-487.72171501,0.00015,2]
[392693440,1761822722242,150.0,0.00014986,120]
[392693441,1761822778910,308.97628775,0.000315,120]
[392693442,1761822856783,500.0,0.00031507,120]
[392693443,1761822992903,722.42,0.00013699,2]
[392693446,1761823098677,1200.0,0.000315,120]
[392693450,1761823461093,1501.83,0.000315,120]
[392693507,1761823832014,-250.0,0.0001427,2]
[392693508,1761823832024,-384.29,0.00014301,2]
[392693509,1761823832033,-183.19,0.00014335,2]
[392693510,1761823832042,-199.0,0.00014773,2]
[392693511,1761823832051,-250.0,0.00014877,2]
[392693512,1761823832061,-793.66714222,0.0001497,2]
[392693513,1761823832079,-417.35285778,0.0001497,2]
[392693514,1761823832089,-1211.02,0.0001497,2]
[392693515,1761823832098,-300.0,0.00014978,2]
[392693516,1761823832108,-1200.0,0.00014978,2]
[392693517,1761823832117,-150.0,0.00014978,2]
[392693518,1761823832126,-237.90197062,0.00014979,2]
[392693519,1761823832135,-500.0,0.00014979,2]
[392693520,1761823832145,-500.0,0.00014979,2]
[392693521,1761823832154,-600.0,0.00014979,2]
[392693522,1761823832164,-500.0,0.00014979,2]
[392693523,1761823832174,-500.0,0.00014979,2]
[392693524,1761823832183,-500.0,0.00014979,2]
[392693525,1761823832192,-500.0,0.00014979,2]
[392693526,1761823832202,-500.0,0.00014979,2]
[392693527,1761823832211,-500.0,0.00014979,2]
[392693528,1761823832220,-500.0,0.00014979,2]
[392693529,1761823832229,-500.0,0.00014979,2]
[392693530,1761823832239,-500.0,0.00014979,2]
[392693531,1761823832248,-500.0,0.00014979,2]
[392693532,1761823832258,-500.0,0.00014979,2]
[392693533,1761823832267,-500.0,0.00014979,2]
[392693534,1761823832277,-500.0,0.00014979,2]
[392693535,1761823832287,-21747.56141197,0.0001498,2]
[392693536,1761823832299,-274.73006917,0.0001498,2]
[392693548,1761823837946,-540.51117255,0.0001498,2]
[392693549,1761823838051,-286.719,0.0001498,2]
[392693550,1761823838161,-31651.25668118,0.0001498,2]
[392693631,1761823843131,-792153.24846344,0.0001498,2]
[392693633,1761823843140,-150.0,0.00014986,2]
[392693635,1761823843149,-192.05671997,0.0001499,2]
[392693637,1761823843159,-676.58,0.00014991,2]
[392693639,1761823843168,-151.0,0.00014991,2]
[392693641,1761823843178,-151.0,0.00014991,2]
[392693643,1761823843187,-151.0,0.00014991,2]
[392693645,1761823843196,-332.62573216,0.00014991,2]
[392693647,1761823843207,-151.0,0.00014991,2]
[392693649,1761823843216,-151.0,0.00014991,2]
[392693651,1761823843225,-151.0,0.00014991,2]
[392693653,1761823843234,-151.0,0.00014991,2]
[392693655,1761823843243,-151.0,0.00014991,2]
[392693657,1761823843252,-151.0,0.00014991,2]
[392693658,1761823843261,-151.0,0.00014991,2]
[392693659,1761823843269,-151.0,0.00014991,2]
[392693660,1761823843278,-151.0,0.00014991,2]
[392693661,1761823843287,-151.0,0.00014991,2]
[392693662,1761823843296,-151.0,0.00014991,2]
[392693663,1761823843305,-151.0,0.00014991,2]
[392693664,1761823843314,-151.0,0.00014991,2]
[392693665,1761823843323,-151.0,0.00014991,2]
[392693666,1761823843333,-151.0,0.00014991,2]
[392693667,1761823843342,-151.0,0.00014991,2]
[392693668,1761823843352,-151.0,0.00014991,2]
[392693669,1761823843360,-500.0,0.00014991,2]
[392693670,1761823843369,-151.0,0.00014991,2]
[392693671,1761823843378,-151.0,0.00014991,2]
[392693672,1761823843388,-553.64373807,0.00014991,2]
[392693674,1761823843397,-201.93286099,0.00014991,2]
[392693676,1761823843406,-1287.0,0.00015,2]
[392693677,1761823843415,-719729.92520562,0.00015,2]
[392693683,1761823920829,4419.374537,0.00031506,120]
[392693685,1761824199929,1400.0,0.00014,2]
[392693690,1761824658266,166.66,0.00013699,2]
[392693691,1761824708734,150.0,0.00013488,2]
[392693692,1761824711427,150.0,0.00013488,2]
[392693693,1761824711566,150.0,0.00013488,2]
[392693694,1761824715616,150.0,0.00013488,2]
[392693695,1761824717670,150.0,0.00013488,2]
[392693696,1761824719027,150.0,0.00013488,2]
[392693697,1761824729716,150.0,0.00013488,2]
[392693698,1761824731128,150.0,0.00013488,2]
[392693699,1761824731206,150.0,0.00013488,2]
[392693702,1761824938085,244.51,0.00014067,2]
[392693710,1761825032212,-1000.0,0.00014145,2]
[392693711,1761825032222,-200.0,0.0001424,2]
[392693712,1761825032232,-166.66,0.00014344,2]
[392693713,1761825032242,-570.03282085,0.00014681,2]
[392693714,1761825032252,-89.88701204,0.00014712,2]
[392693715,1761825032376,-78.11298796,0.00014712,2]
[392693716,1761825032385,-150.36754,0.0001485,2]
[392693717,1761825032395,-276.95453678,0.000149,2]
[392693718,1761825032405,-2232.0,0.00014959,2]
[392693719,1761825032414,-1835.2365,0.00014959,2]
[392693720,1761825032424,-1266.507972,0.0001497,2]
[392693721,1761825032433,-150.0,0.0001497,2]
[392693722,1761825032442,-300.0,0.00014972,2]
[392693723,1761825032451,-1200.0,0.00014972,2]
[392693724,1761825032461,-501.62724504,0.00014973,2]
[392693725,1761825032470,-500.0,0.00014973,2]
[392693726,1761825032479,-502.1312441,0.00014973,2]
[392693728,1761825032488,-150.0,0.00014986,2]
[392693730,1761825032498,-150.0,0.00014986,2]
[392693732,1761825032507,-150.0,0.00014986,2]
[392693734,1761825032517,-150.0,0.00014986,2]
[392693735,1761825032526,-166.66,0.00014989,2]
[392693737,1761825032536,-2288.6917704,0.00014989,2]
[392693739,1761825032545,-500.0,0.00014989,2]
[392693741,1761825032554,-500.0,0.00014989,2]
[392693743,1761825032563,-160.0,0.00014989,2]
[392693745,1761825032572,-500.0,0.00014989,2]
[392693747,1761825032582,-150.0,0.0001499,2]
[392693749,1761825032590,-1117.16435527,0.0001499,2]
[392693751,1761825032599,-1117.16435527,0.0001499,2]
[392693753,1761825032608,-1117.16435527,0.0001499,2]
[392693755,1761825032617,-725.17,0.00014991,2]
[392693757,1761825032626,-151.0,0.00014991,2]
[392693759,1761825032635,-151.0,0.00014991,2]
[392693761,1761825032645,-151.0,0.00014991,2]
[392693763,1761825032653,-151.0,0.00014991,2]
[392693765,1761825032663,-500.0,0.00014991,2]
[392693767,1761825032672,-151.0,0.00014991,2]
[392693769,1761825032682,-151.0,0.00014991,2]
[392693771,1761825032691,-151.0,0.00014991,2]
[392693773,1761825032702,-151.0,0.00014991,2]
[392693775,1761825032711,-553.64373807,0.00014991,2]
[392693777,1761825032721,-151.0,0.00014991,2]
[392693779,1761825032729,-151.0,0.00014991,2]
[392693781,1761825032738,-151.0,0.00014991,2]
[392693783,1761825032747,-151.0,0.00014991,2]
[392693785,1761825032756,-151.0,0.00014991,2]
[392693787,1761825032764,-151.0,0.00014991,2]
[392693789,1761825032773,-151.0,0.00014991,2]
[392693791,1761825032782,-151.0,0.00014991,2]
[392693793,1761825032791,-151.0,0.00014991,2]
[392693795,1761825032800,-151.0,0.00014991,2]
[392693797,1761825032810,-151.0,0.00014991,2]
[392693799,1761825032819,-151.0,0.00014991,2]
[392693801,1761825032828,-209.40437684,0.00014991,2]
[392693803,1761825032838,-164.42471753,0.00014992,2]
[392693805,1761825032847,-172.45,0.00014998,2]
[392693807,1761825032857,-1002.6795,0.00014999,2]
[392693808,1761825032866,-166.53137943,0.00014999,2]
[392693810,1761825032875,-500.0,0.00014999,2]
[392693812,1761825032884,-500.0,0.00014999,2]
[392693814,1761825032894,-500.0,0.00014999,2]
[392693815,1761825032903,-500.0,0.00014999,2]
[392693816,1761825032913,-500.0,0.00014999,2]
[392693817,1761825032923,-500.0,0.00014999,2]
[392693818,1761825032932,-500.0,0.00014999,2]
[392693819,1761825032941,-500.0,0.00014999,2]
[392693820,1761825032952,-500.0,0.00014999,2]
[392693821,1761825032962,-500.0,0.00014999,2]
[392693822,1761825032972,-500.0,0.00014999,2]
[392693823,1761825032982,-500.0,0.00014999,2]
[392693824,1761825032991,-853.2,0.00014999,2]
[392693825,1761825033001,-853.2,0.00014999,2]
[392693826,1761825033010,-853.2,0.00014999,2]
[392693827,1761825033020,-853.2,0.00014999,2]
[392693828,1761825033029,-853.2,0.00014999,2]
[392693829,1761825033039,-853.2,0.00014999,2]
[392693830,1761825033049,-853.2,0.00014999,2]
[392693831,1761825033058,-853.2,0.00014999,2]
[392693832,1761825033068,-853.2,0.00014999,2]
[392693833,1761825033077,-853.2,0.00014999,2]
[392693834,1761825033086,-853.2,0.00014999,2]
[392693835,1761825033096,-853.2,0.00014999,2]
[392693836,1761825033106,-853.2,0.00014999,2]
[392693837,1761825033115,-853.2,0.00014999,2]
[392693838,1761825033124,-853.2,0.00014999,2]
[392693839,1761825033134,-853.2,0.00014999,2]
[392693840,1761825033143,-853.2,0.00014999,2]
[392693841,1761825033152,-853.2,0.00014999,2]
[392693842,1761825033161,-853.2,0.00014999,2]
[392693843,1761825033171,-853.2,0.00014999,2]
[392693844,1761825033180,-853.2,0.00014999,2]
[392693845,1761825033190,-853.2,0.00014999,2]
[392693846,1761825033200,-853.2,0.00014999,2]
[392693847,1761825033209,-853.31840689,0.00014999,2]
[392693848,1761825033219,-1339.0,0.00015,2]
[392693849,1761825033227,-313967.38241968,0.00015,2]
[392693850,1761825033240,-29604.15266864,0.00015,2]
[392693851,1761825033251,-21075.10286716,0.00015,2]
[392693852,1761825033269,-10484.6,0.00015,2]
[392693853,1761825033281,-2632.90544864,0.00015,2]
[392693854,1761825033291,-1269.3013,0.00015,2]
[392693857,1761825040359,-500.0,0.00014989,2]
[392693858,1761825040369,-1945120.81218524,0.00015,2]
[392693882,1761825046172,-318.86249742,0.00015,2]
[392693886,1761825692692,30000.0,0.000315,120]
[392693887,1761825895081,686.29,0.00013699,2]
[392693890,1761825903515,313.77,0.00014081,2]
[392693891,1761825913268,150.0,0.00013488,2]
[392693892,1761825913345,150.0,0.00013987,2]
[392693893,1761825914121,150.0,0.00013488,2]
[392693894,1761825914175,150.0,0.00013488,2]
[392693895,1761825914217,150.0,0.00013862,2]
[392693896,1761825919430,150.0,0.00013488,2]
[392693897,1761825919516,152.18926861,0.00013488,2]
[392693898,1761825920633,150.0,0.00013488,2]
[392693899,1761825922071,225.29480008,0.00013488,2]
[392693900,1761825933558,170.19145155,0.00013488,2]
[392693901,1761825933606,150.0,0.00013488,2]
[392693902,1761825933775,150.0,0.00013488,2]
[392693981,1761826170953,150.0,0.00013928,2]
[392694011,1761826232583,-150.0,0.00014237,2]
[392694012,1761826232593,-102.08750324,0.00014237,2]
[392694053,1761826238294,-47.91249676,0.00014237,2]
[392694054,1761826238303,-150.0,0.00014237,2]
[392694055,1761826238313,-150.0,0.00014487,2]
[392694056,1761826238323,-150.0,0.00014612,2]
[392694057,1761826238333,-168.0,0.00014766,2]
[392694058,1761826238343,-27.98434163,0.0001485,2]
[392694059,1761826238496,-122.38321758,0.0001485,2]
[392694060,1761826238505,-150.41125766,0.0001485,2]
[392694061,1761826238515,-2.10552476,0.00014884,2]
[392694062,1761826238530,-835.15847524,0.00014884,2]
[392694063,1761826238539,-909.111,0.00014884,2]
[392694064,1761826238549,-1193.208,0.00014884,2]
[392694065,1761826238558,-150.0,0.00014897,2]
[392694066,1761826238568,-300.0,0.00014897,2]
[392694067,1761826238578,-300.0,0.00014897,2]
[392694068,1761826238587,-1200.0,0.00014897,2]
[392694069,1761826238597,-500.0,0.00014898,2]
[392694070,1761826238607,-500.0,0.00014898,2]
[392694071,1761826238616,-500.0,0.00014898,2]
[392694072,1761826238626,-500.0,0.00014898,2]
[392694073,1761826238635,-17.73352932,0.00014898,2]
[392694074,1761826238647,-482.26647068,0.00014898,2]
[392694075,1761826238657,-500.0,0.00014898,2]
[392694076,1761826238667,-500.0,0.00014898,2]
[392694077,1761826238676,-500.0,0.00014898,2]
[392694078,1761826238686,-500.0,0.00014898,2]
[392694079,1761826238696,-199.70985123,0.00014898,2]
[392694080,1761826238711,-300.29014877,0.00014898,2]
[392694081,1761826238722,-500.0,0.00014898,2]
[392694082,1761826238731,-296.70985123,0.00014898,2]
[392694083,1761826238742,-203.29014877,0.00014898,2]
[392694084,1761826238753,-500.0,0.00014898,2]
[392694085,1761826238762,-500.0,0.00014898,2]
[392694086,1761826238771,-500.0,0.00014898,2]
[392694087,1761826238781,-500.0,0.00014898,2]
[392694088,1761826238792,-500.0,0.00014898,2]
[392694089,1761826238802,-500.0,0.00014898,2]
[392694090,1761826238811,-500.0,0.00014898,2]
[392694091,1761826238820,-500.0,0.00014898,2]
[392694092,1761826238829,-500.0,0.00014898,2]
[392694093,1761826238838,-500.0,0.00014898,2]
[392694094,1761826238848,-500.0,0.00014898,2]
[392694095,1761826238857,-500.0,0.00014898,2]
[392694096,1761826238867,-500.0,0.00014898,2]
[392694097,1761826238876,-603.47437526,0.00014898,2]
[392694098,1761826238886,-2492.04881736,0.00014899,2]
[392694099,1761826238895,-180.17767032,0.00014899,2]
[392694100,1761826238905,-782.88,0.00014899,2]
[392694101,1761826238915,-2492.04881735,0.00014899,2]
[392694102,1761826238925,-180.1776703,0.00014899,2]
[392694103,1761826238934,-2492.04881735,0.00014899,2]
[392694104,1761826238944,-180.1776703,0.00014899,2]
[392694105,1761826238953,-2492.04881735,0.00014899,2]
[392694106,1761826238962,-180.1776703,0.00014899,2]
[392694107,1761826238972,-416.72871683,0.00014899,2]
[392694108,1761826238983,-415.86117091,0.00014899,2]
[392694109,1761826239005,-1176.76878117,0.00014899,2]
[392694110,1761826239017,-482.69014844,0.00014899,2]
[392694111,1761826239027,-1489.60985153,0.000149,2]
[392694115,1761826240346,-405.04999195,0.000149,2]
[392694116,1761826240358,-597.38897387,0.000149,2]
[392694117,1761826240369,-180.1776703,0.000149,2]
[392694118,1761826240379,-2492.04881735,0.000149,2]
[392694119,1761826240388,-180.1776703,0.000149,2]
[392694120,1761826240398,-759.44040636,0.000149,2]
[392694121,1761826240410,-1732.60841099,0.000149,2]
[392694122,1761826240420,-180.1776703,0.000149,2]
[392694123,1761826240429,-2492.04881735,0.000149,2]
[392694124,1761826240438,-2492.04881735,0.000149,2]
[392694125,1761826240448,-180.1776703,0.000149,2]
[392694126,1761826240457,-184.63635786,0.000149,2]
[392694127,1761826240468,-1000.0,0.0001497,2]
[392694128,1761826240477,-505.84532976,0.00014973,2]
[392694129,1761826240487,-1314.0,0.00014976,2]
[392694130,1761826240497,-172.45,0.00014985,2]
[392694131,1761826240507,-174.31585873,0.00014986,2]
[392694132,1761826240519,-200.36449101,0.00014986,2]
[392694133,1761826240530,-239.9868507,0.00014986,2]
[392694134,1761826240541,-183.36943523,0.00014986,2]
[392694135,1761826240553,-268.58161013,0.00014986,2]
[392694136,1761826240563,-158.84406764,0.00014986,2]
[392694137,1761826240576,-210.70725474,0.00014986,2]
[392694138,1761826240586,-192.05671999,0.0001499,2]
[392694139,1761826240600,-299.96903195,0.00014991,2]
[392694140,1761826240614,-150.0,0.00014991,2]
[392694141,1761826240624,-150.0,0.00014991,2]
[392694142,1761826240633,-150.0,0.00014991,2]
[392694143,1761826240644,-250.22654653,0.00014991,2]
[392694144,1761826240655,-500.0,0.00014991,2]
[392694145,1761826240664,-150.0,0.00014991,2]
[392694146,1761826240674,-500.0,0.00014991,2]
[392694147,1761826240683,-300.0,0.00014991,2]
[392694148,1761826240692,-150.49474549,0.00014991,2]
[392694149,1761826240702,-150.0,0.00014991,2]
[392694150,1761826240714,-150.89169198,0.00014991,2]
[392694151,1761826240724,-150.0,0.00014991,2]
[392694152,1761826240734,-150.0,0.00014991,2]
[392694153,1761826240747,-150.0,0.00014991,2]
[392694154,1761826240757,-500.0,0.00014991,2]
[392694155,1761826240767,-150.0,0.00014991,2]
[392694156,1761826240777,-150.0,0.00014991,2]
[392694158,1761826240788,-150.0,0.00014991,2]
[392694159,1761826240798,-464.0,0.00014991,2]
[392694160,1761826240807,-151.0,0.00014991,2]
[392694161,1761826240817,-151.0,0.00014991,2]
[392694162,1761826240828,-151.0,0.00014991,2]
[392694164,1761826240837,-151.0,0.00014991,2]
[392694166,1761826240847,-151.0,0.00014991,2]
[392694168,1761826240856,-151.0,0.00014991,2]
[392694170,1761826240865,-500.0,0.00014991,2]
[392694172,1761826240874,-151.0,0.00014991,2]
[392694174,1761826240883,-151.0,0.00014991,2]
[392694176,1761826240893,-151.0,0.00014991,2]
[392694178,1761826240902,-151.0,0.00014991,2]
[392694180,1761826240915,-151.0,0.00014991,2]
[392694182,1761826240924,-151.0,0.00014991,2]
[392694184,1761826240933,-151.0,0.00014991,2]
[392694186,1761826240942,-151.0,0.00014991,2]
[392694188,1761826240951,-151.0,0.00014991,2]
[392694190,1761826240960,-151.0,0.00014991,2]
[392694192,1761826240970,-151.0,0.00014991,2]
[392694194,1761826240979,-151.0,0.00014991,2]
[392694196,1761826240990,-151.0,0.00014991,2]
[392694198,1761826241000,-151.0,0.00014991,2]
[392694200,1761826241009,-151.0,0.00014991,2]
[392694202,1761826241020,-553.64373807,0.00014991,2]
[392694204,1761826241030,-151.0,0.00014991,2]
[392694206,1761826241042,-201.93286098,0.00014991,2]
[392694208,1761826241052,-332.62573216,0.00014991,2]
[392694210,1761826241061,-150.0,0.00014991,2]
[392694212,1761826241070,-204.70360856,0.00014991,2]
[392694215,1761826241079,-150.0,0.00014991,2]
[392694216,1761826241089,-150.0,0.00014991,2]
[392694218,1761826241102,-150.0,0.00014991,2]
[392694220,1761826241111,-200.0,0.00014991,2]
[392694222,1761826241120,-500.0,0.00014991,2]
[392694223,1761826241130,-500.0,0.00014991,2]
[392694224,1761826241139,-262.16586738,0.00014998,2]
[392694225,1761826241148,-37340.54324075,0.00014999,2]
[392694226,1761826241164,-895.85584663,0.00014999,2]